[Event "FIN-ch Women 2018"]
[Site "Helsinki"]
[Date "2018.06.12"]
[Round "2"]
[White "Ristoja, Aulikki"]
[Black "Nazarova, Anastasia"]
[Result "0-1"]
[ECO "D00"]
[WhiteElo "1565"]
[BlackElo "2137"]
[Annotator "NA"]
[PlyCount "96"]
[EventDate "2018.06.13"]
[EventType "tourn"]
[EventCountry "FIN"]
[SourceTitle "playchess.com"]
[Source "ChessBase"]
[SourceQuality "1"]
[TimeControl "40/5400+30:1800+30"]

1. d4 {[%emt 0:00:00]} d5 {[%emt 0:00:03]} 2. Bf4 {[%emt 0:00:00]} Nf6 {[%emt 0:00:21]} 3. e3 {[%emt 0:00:01]} c5 {[%emt 0:00:15]} 4. Bb5+ {[%emt 0:01:17]} Bd7 {[%emt 0:02:03]} 5. Bxd7+ {[%emt 0:00:52]} Nbxd7 {[%emt 0:00:23]} 6. c3 {[%emt 0:01:13]} Rc8 {[%emt 0:01:24]} 7. g4 {[%emt 0:03:17]} Qb6 {[%emt 0:00:45]} 8. Qe2 {[%emt 0:01:23]} h6 {[%emt 0:00:43]} 9. a4 {[%emt 0:01:11]} a6 {[%emt 0:02:30]} 10. a5 {[%emt 0:02:52]} Qc6 $15 {[%emt 0:01:35]} 11. h3 {[%emt 0:05:10]} e6 {[%emt 0:00:13]} 12. Nf3 {[%emt 0:04:43]} Ne4 {[%emt 0:07:57]} 13. Ne5 {[%emt 0:03:19]} Nxe5 {[%emt 0:00:24]} 14. Bxe5 {[%emt 0:01:28]} f6 {[%emt 0:01:10]} 15. Bh2 {[%emt 0:00:27]} Bd6 {[%emt 0:00:10]} 16. Bxd6 {[%emt 0:01:35]} Qxd6 {[%emt 0:01:07]} 17. Nd2 {[%emt 0:01:15]} Nxd2 {[%emt 0:06:06]} 18. Qxd2 {[%emt 0:00:28]} h5 {[%emt 0:01:20]} 19. Qe2 {[%emt 0:02:40]} hxg4 {[%emt 0:04:58]} 20. Qxg4 {[%emt 0:00:21]} Qe7 {[%emt 0:00:23]} 21. Qg6+ {[%emt 0:03:42]} Kf8 {[%emt 0:00:08]} 22. Qg3 {[%emt 0:02:50]} Rh5 {[%emt 0:06:34]} 23. f4 {[%emt 0:00:46]} cxd4 {[%emt 0:00:42]} 24. exd4 {[%emt 0:00:10]} Qc7 {[%emt 0:06:57]} 25. Qg4 {[%emt 0:00:42]} Rf5 {[%emt 0:01:03]} 26. Rf1 Kf7 {[%emt 0:05:57]} 27. h4 {[%emt 0:02:17]} Rh8 {[%emt 0:00:31]} 28. Kd2 {[%emt 0:03:19]} Rh6 {[%emt 0:08:49]} 29. Ke3 Rfh5 {[%emt 0:12:48]} 30. Rg1 {[%emt 0:01:06]} g6 {[%emt 0:00:08]} 31. Rh1 {[%emt 0:00:13]} Qe7 {[%emt 0:03:19]} 32. Ra4 {[%emt 0:00:18]} f5 33. Qg3 {[%emt 0:00:15]} Rxh4 {[%emt 0:01:55]} 34. Rxh4 {[%emt 0:00:01]} Rxh4 {[%emt 0:00:07]} 35. Rb4 {[%emt 0:00:11]} Rg4 {[%emt 0:01:04]} 36. Qh3 {[%emt 0:00:16]} Kg7 {[%emt 0:02:50]} 37. Rb6 {[%emt 0:00:15]} g5 {[%emt 0:06:44]} 38. Qh1 Rxf4 {[%emt 0:01:02]} 39. c4 {[%emt 0:00:13]} Re4+ {[%emt 0:00:08]} 40. Kd3 {[%emt 0:00:00]} dxc4+ {[%emt 0:01:04]} 41. Kxc4 {[%emt 0:01:43]} Qd7 {[%emt 0:00:32]} 42. Qg1 {[%emt 0:00:56]} g4 {[%emt 0:02:02]} 43. Rb4 {[%emt 0:07:17]} Qd5+ {[%emt 0:00:19]} 44. Kd3 {[%emt 0:00:49]} e5 45. Qc1 Rxd4+ 46. Rxd4 Qxd4+ 47. Ke2 Qe4+ 48. Kf2 Qf4+ 0-1

[Event "FIN-ch Women 2018"]
[Site "Helsinki"]
[Date "2018.06.13"]
[Round "3"]
[White "Nazarova, Anastasia"]
[Black "Al Najar, Huda"]
[Result "1-0"]
[ECO "B44"]
[WhiteElo "2137"]
[BlackElo "1719"]
[Annotator "NA"]
[PlyCount "35"]
[EventDate "2018.06.13"]
[EventType "tourn"]
[EventCountry "FIN"]
[SourceTitle "playchess.com"]
[Source "ChessBase"]
[SourceQuality "1"]
[TimeControl "40/5400+30:1800+30"]

1. e4 {[%emt 0:00:00]} c5 {[%emt 0:00:04]} 2. Nf3 {[%emt 0:00:00]} Nc6 {[%emt 0:00:01]} 3. d4 {[%emt 0:00:00]} cxd4 {[%emt 0:00:02]} 4. Nxd4 {[%emt 0:00:00]} e6 {[%emt 0:00:10]} 5. Nxc6 {[%emt 0:00:01]} bxc6 {[%emt 0:00:02]} 6. Bd3 {[%emt 0:00:05]} Nf6 {[%emt 0:00:23]} 7. O-O {[%emt 0:00:35]} Bc5 {[%emt 0:01:37]} 8. e5 {[%emt 0:05:19]} Nd5 {[%emt 0:03:19]} 9. Qg4 {[%emt 0:04:42]} Bf8 {[%emt 0:04:47]} 10. a3 {[%emt 0:01:39]} a5 {[%emt 0:04:13]} 11. c4 {[%emt 0:01:04]} Ba6 {[%emt 0:04:56]} 12. Rd1 {[%emt 0:02:32]} h5 {[%emt 0:11:43]} 13. Qe4 {[%emt 0:05:16]} f5 {[%emt 0:02:39]} 14. exf6 {[%emt 0:01:11]} Nxf6 {[%emt 0:00:08]} 15. Qg6+ {[%emt 0:00:12]} Ke7 {[%emt 0:01:32]} 16. Be3 {[%emt 0:09:33]} Qe8 {[%emt 0:01:51]} 17. Qg5 {[%emt 0:00:18]} Kf7 {[%emt 0:05:17]} 18. Bg6+ {[%emt 0:00:15]} 1-0

[Event "FIN-ch Women 2018"]
[Site "Helsinki"]
[Date "2018.06.13"]
[Round "3"]
[White "Dannenberg, Alia"]
[Black "Ristoja, Aulikki"]
[Result "1-0"]
[ECO "A05"]
[WhiteElo "1934"]
[BlackElo "1565"]
[Annotator "NA"]
[PlyCount "115"]
[EventDate "2018.06.13"]
[EventType "tourn"]
[EventCountry "FIN"]
[SourceTitle "playchess.com"]
[Source "ChessBase"]
[SourceQuality "1"]
[TimeControl "40/5400+30:1800+30"]

1. Nf3 {[%emt 0:00:00]} Nf6 {[%emt 0:01:55]} 2. g3 {[%emt 0:00:00]} d5 {[%emt 0:01:07]} 3. Bg2 {[%emt 0:00:00]} g6 {[%emt 0:00:59]} 4. d3 {[%emt 0:00:00]} Bg7 {[%emt 0:00:20]} 5. Nbd2 {[%emt 0:00:14]} O-O {[%emt 0:04:07]} 6. O-O {[%emt 0:00:06]} Re8 {[%emt 0:01:23]} 7. Re1 {[%emt 0:03:44]} e5 {[%emt 0:01:11]} 8. e4 {[%emt 0:00:20]} Bg4 {[%emt 0:02:42]} 9. h3 {[%emt 0:01:57]} Bxf3 {[%emt 0:00:33]} 10. Qxf3 {[%emt 0:03:35]} d4 {[%emt 0:02:38]} 11. a4 {[%emt 0:07:08]} c5 {[%emt 0:01:46]} 12. Nc4 {[%emt 0:00:44]} a5 {[%emt 0:02:51]} 13. Qe2 {[%emt 0:01:58]} Nc6 {[%emt 0:01:55]} 14. f4 {[%emt 0:01:20]} exf4 {[%emt 0:03:31]} 15. gxf4 {[%emt 0:00:37]} Nb4 {[%emt 0:04:14]} 16. Qf2 {[%emt 0:02:16]} Rc8 {[%emt 0:02:10]} 17. e5 {[%emt 0:05:01]} Nfd5 {[%emt 0:00:34]} 18. Nd6 {[%emt 0:01:06]} Qd7 {[%emt 0:02:22]} 19. Re2 {[%emt 0:07:56]} b6 {[%emt 0:00:29]} 20. Bxd5 {[%emt 0:03:23]} Nxd5 {[%emt 0:00:03]} 21. Qf3 {[%emt 0:00:44]} Nb4 {[%emt 0:00:44]} 22. Nxc8 {[%emt 0:02:14]} Rxc8 {[%emt 0:00:09]} 23. Qg4 {[%emt 0:04:07]} Qc7 {[%emt 0:01:18]} 24. b3 {[%emt 0:01:40]} Re8 {[%emt 0:00:52]} 25. Qf3 {[%emt 0:01:17]} Qd7 {[%emt 0:00:36]} 26. Bb2 {[%emt 0:01:58]} Nd5 {[%emt 0:00:03]} 27. Rae1 {[%emt 0:01:58]} Bh6 {[%emt 0:00:04]} 28. Bc1 {[%emt 0:01:14]} Nc3 {[%emt 0:01:14]} 29. Rf2 {[%emt 0:01:50]} Qe6 {[%emt 0:01:48]} 30. f5 {[%emt 0:03:57]} gxf5 {[%emt 0:00:09]} 31. Bxh6 {[%emt 0:00:44]} Qxh6 {[%emt 0:00:05]} 32. Qxf5 {[%emt 0:00:44]} Qe6 {[%emt 0:01:23]} 33. Qxe6 {[%emt 0:07:09]} Rxe6 {[%emt 0:00:09]} 34. Rf6 {[%emt 0:00:20]} Nd5 {[%emt 0:00:32]} 35. Rxe6 {[%emt 0:01:34]} fxe6 {[%emt 0:00:02]} 36. Rf1 {[%emt 0:03:23]} Kg7 {[%emt 0:00:23]} 37. Kh2 {[%emt 0:00:51]} h5 {[%emt 0:01:38]} 38. Kg3 {[%emt 0:00:42]} Kg6 {[%emt 0:00:48]} 39. Kh4 {[%emt 0:01:27]} Kh6 {[%emt 0:03:14]} 40. Rf6+ {[%emt 0:00:00]} Nxf6 {[%emt 0:00:31]} 41. exf6 {[%emt 0:07:52]} Kg6 {[%emt 0:01:25]} 42. f7 {[%emt 0:00:17]} Kxf7 {[%emt 0:00:07]} 43. Kxh5 {[%emt 0:00:02]} Kf6 {[%emt 0:03:14]} 44. Kg4 {[%emt 0:00:02]} e5 {[%emt 0:03:48]} 45. h4 {[%emt 0:03:05]} Kg6 {[%emt 0:06:53]} 46. h5+ {[%emt 0:01:11]} Kf6 {[%emt 0:03:05]} 47. Kf3 {[%emt 0:07:58]} Kg5 {[%emt 0:00:45]} 48. Ke4 {[%emt 0:00:13]} Kxh5 {[%emt 0:00:17]} 49. Kxe5 {[%emt 0:11:00]} Kg4 {[%emt 0:00:39]} 50. Kd5 {[%emt 0:00:33]} Kf3 {[%emt 0:00:29]} 51. Kc6 {[%emt 0:00:09]} Ke2 {[%emt 0:00:17]} 52. Kxb6 {[%emt 0:00:11]} Kd2 {[%emt 0:00:10]} 53. Kxc5 {[%emt 0:00:30]} Kc3 {[%emt 0:00:26]} 54. Kb5 {[%emt 0:00:24]} Kxc2 {[%emt 0:00:24]} 55. Kc4 {[%emt 0:00:26]} Kb2 {[%emt 0:00:50]} 56. b4 {[%emt 0:00:25]} axb4 {[%emt 0:01:00]} 57. Kxb4 {[%emt 0:00:06]} Kc2 {[%emt 0:00:40]} 58. Kc4 {[%emt 0:00:10]} 1-0

[Event "FIN-ch Women 2018"]
[Site "Helsinki"]
[Date "2018.06.13"]
[Round "3"]
[White "Turunen, Tiina"]
[Black "Pelander, Pauliina"]
[Result "0-1"]
[ECO "A40"]
[WhiteElo "1665"]
[BlackElo "1610"]
[Annotator "NA"]
[PlyCount "130"]
[EventDate "2018.06.13"]
[EventType "tourn"]
[EventCountry "FIN"]
[SourceTitle "playchess.com"]
[Source "ChessBase"]
[SourceQuality "1"]
[TimeControl "40/5400+30:1800+30"]

1. d4 {[%emt 0:00:00]} b5 {[%emt 0:09:32]} 2. e4 {[%emt 0:00:28]} Bb7 {[%emt 0:00:05]} 3. f3 {[%emt 0:00:28]} a6 {[%emt 0:00:16]} 4. Be3 {[%emt 0:00:59]} e6 {[%emt 0:00:22]} 5. c3 {[%emt 0:00:58]} g5 {[%emt 0:01:04]} 6. Bd3 {[%emt 0:00:36]} h5 {[%emt 0:00:29]} 7. Qd2 {[%emt 0:01:26]} g4 {[%emt 0:00:39]} 8. f4 {[%emt 0:02:21]} Be7 {[%emt 0:03:37]} 9. Ne2 {[%emt 0:00:13]} Bh4+ {[%emt 0:00:36]} 10. Ng3 {[%emt 0:03:04]} Nf6 {[%emt 0:00:30]} 11. Qc2 {[%emt 0:00:26]} d6 {[%emt 0:01:16]} 12. Bf2 {[%emt 0:00:47]} Nbd7 {[%emt 0:01:15]} 13. Nd2 {[%emt 0:00:51]} c5 {[%emt 0:00:55]} 14. O-O {[%emt 0:02:08]} Qb6 {[%emt 0:06:16]} 15. dxc5 {[%emt 0:01:33]} dxc5 {[%emt 0:00:49]} 16. c4 {[%emt 0:01:57]} Qd6 {[%emt 0:07:24]} 17. e5 {[%emt 0:00:41]} Qc6 {[%emt 0:00:07]} 18. Nge4 {[%emt 0:01:30]} Bxf2+ {[%emt 0:08:57]} 19. Rxf2 {[%emt 0:00:19]} Nxe4 {[%emt 0:01:51]} 20. Bxe4 {[%emt 0:01:17]} Qb6 {[%emt 0:00:13]} 21. Bxb7 {[%emt 0:00:33]} Qxb7 {[%emt 0:00:08]} 22. Ne4 {[%emt 0:00:12]} Qb6 {[%emt 0:01:04]} 23. Nd6+ {[%emt 0:01:58]} Ke7 {[%emt 0:00:16]} 24. b3 {[%emt 0:01:04]} h4 {[%emt 0:01:03]} 25. Re2 {[%emt 0:00:52]} Nb8 {[%emt 0:04:57]} 26. f5 {[%emt 0:00:16]} Nc6 {[%emt 0:00:24]} 27. f6+ {[%emt 0:01:40]} Kf8 {[%emt 0:00:13]} 28. Qe4 {[%emt 0:01:34]} g3 {[%emt 0:02:00]} 29. Qg4 {[%emt 0:01:31]} gxh2+ {[%emt 0:00:21]} 30. Kxh2 {[%emt 0:02:00]} Rh7 {[%emt 0:00:40]} 31. Qe4 {[%emt 0:00:54]} Rh6 {[%emt 0:00:13]} 32. Rf1 {[%emt 0:00:42]} Rd8 {[%emt 0:01:30]} 33. Qf4 {[%emt 0:00:55]} Rh5 {[%emt 0:01:16]} 34. Qg4 {[%emt 0:00:43]} Rh7 {[%emt 0:00:10]} 35. Qg5 {[%emt 0:02:51]} Nxe5 {[%emt 0:02:14]} 36. Nxb5 {[%emt 0:04:56]} Nd3 {[%emt 0:10:45]} 37. Nc3 {[%emt 0:02:26]} Qd6+ {[%emt 0:00:13]} 38. Kh1 {[%emt 0:02:32]} Qg3 {[%emt 0:02:21]} 39. Ne4 {[%emt 0:02:27]} Qxg5 {[%emt 0:05:45]} 40. Nxg5 {[%emt 0:00:52]} Rh5 {[%emt 0:00:09]} 41. Nh3 {[%emt 0:03:05]} Rd4 {[%emt 0:03:04]} 42. Kh2 {[%emt 0:03:24]} Ne5 {[%emt 0:01:15]} 43. Kg1 {[%emt 0:06:34]} Ng4 {[%emt 0:01:12]} 44. Kh1 {[%emt 0:07:11]} Rh6 {[%emt 0:00:58]} 45. Ng5 {[%emt 0:01:16]} Nxf6 {[%emt 0:01:55]} 46. Re5 {[%emt 0:02:18]} Rg4 {[%emt 0:02:37]} 47. Rf2 {[%emt 0:02:52]} Ke7 {[%emt 0:11:34]} 48. Rxc5 {[%emt 0:02:31]} Rxg5 {[%emt 0:00:56]} 49. Rxg5 {[%emt 0:03:56]} Ne4 {[%emt 0:00:17]} 50. Ra5 {[%emt 0:00:41]} Nxf2+ {[%emt 0:00:17]} 51. Kg1 {[%emt 0:00:16]} Ng4 {[%emt 0:02:25]} 52. Rxa6 {[%emt 0:00:48]} Rg6 {[%emt 0:01:39]} 53. c5 {[%emt 0:03:54]} Ne3 {[%emt 0:00:46]} 54. Ra7+ {[%emt 0:00:25]} Kf6 {[%emt 0:02:03]} 55. Kh2 {[%emt 0:07:07]} Rxg2+ {[%emt 0:00:41]} 56. Kh3 {[%emt 0:00:22]} Rg3+ {[%emt 0:02:36]} 57. Kh2 {[%emt 0:01:45]} Nf1+ {[%emt 0:00:57]} 58. Kh1 {[%emt 0:00:26]} h3 {[%emt 0:00:53]} 59. Ra4 {[%emt 0:01:30]} Kg5 {[%emt 0:00:58]} 60. Ra8 {[%emt 0:02:25]} Kf4 {[%emt 0:01:29]} 61. Rh8 {[%emt 0:03:19]} h2 {[%emt 0:01:33]} 62. Rh4+ {[%emt 0:00:54]} Kg5 {[%emt 0:00:12]} 63. Rxh2 {[%emt 0:01:10]} Nxh2 {[%emt 0:00:05]} 64. Kxh2 {[%emt 0:00:09]} Rc3 {[%emt 0:00:06]} 65. b4 {[%emt 0:00:12]} Rc2+ {[%emt 0:00:36]} 0-1

[Event "FIN-ch Women 2018"]
[Site "Helsinki"]
[Date "2018.06.13"]
[Round "3"]
[White "Al Argha, Fatima"]
[Black "Norlamo, Sarabella"]
[Result "0-1"]
[ECO "A00"]
[WhiteElo "1436"]
[BlackElo "1847"]
[Annotator "NA RC"]
[PlyCount "50"]
[EventDate "2018.06.13"]
[EventType "tourn"]
[EventCountry "FIN"]
[SourceTitle "playchess.com"]
[Source "ChessBase"]
[SourceQuality "1"]
[TimeControl "40/5400+30:1800+30"]

1. g3 {[%emt 0:00:00]} Nf6 {[%emt 0:01:44]} 2. Bg2 e5 {[%emt 0:01:40]} 3. c4 {[%emt 0:01:26]} c6 {[%emt 0:07:01]} 4. Nc3 {[%emt 0:07:10]} Be7 {[%emt 0:01:41]} 5. Nf3 d6 {[%emt 0:00:07]} 6. O-O {[%emt 0:12:21]} O-O {[%emt 0:13:36]} 7. a3 {[%emt 0:07:17]} Qc7 {[%emt 0:01:11]} 8. Qc2 Be6 {[%emt 0:01:28]} 9. d3 {[%emt 0:05:22]} h6 {[%emt 0:05:52]} 10. b4 {[%emt 0:03:52]} d5 {[%emt 0:02:21]} 11. cxd5 {[%emt 0:01:34]} cxd5 {[%emt 0:12:51]} 12. Qd2 {[%emt 0:12:56]} d4 {[%emt 0:03:52]} 13. Na2 {[%emt 0:00:22]} Nbd7 {[%emt 0:01:29]} 14. Bb2 {[%emt 0:00:29]} Rac8 {[%emt 0:01:02]} 15. Rfc1 {[%emt 0:01:06]} Qb6 {[%emt 0:05:52]} 16. e3 {[%emt 0:02:47]} dxe3 {[%emt 0:03:59]} 17. fxe3 {[%emt 0:03:19]} e4 {[%emt 0:06:28]} 18. Nd4 {[%emt 0:01:51]} Rxc1+ {[%emt 0:01:45]} 19. Nxc1 {[%emt 0:11:48]} Bd5 20. Nf5 {[%emt 0:00:12]} Bd8 {[%emt 0:01:37]} 21. dxe4 {[%emt 0:01:35]} Be6 {[%emt 0:04:33]} 22. Nd4 Ne5 {[%emt 0:00:01]} 23. Nxe6 {[%emt 0:02:36]} Qxe6 {[%emt 0:00:09]} 24. Bxe5 {[%emt 0:00:50]} Qxe5 {[%emt 0:00:14]} 25. Nd3 Qxa1+ 0-1

[Event "FIN-ch Women 2018"]
[Site "Helsinki"]
[Date "2018.06.13"]
[Round "3"]
[White "Al-Hamoud, Lyal"]
[Black "Walta, Paivi"]
[Result "0-1"]
[ECO "B20"]
[WhiteElo "1382"]
[BlackElo "1634"]
[Annotator "NA"]
[PlyCount "96"]
[EventDate "2018.06.13"]
[EventType "tourn"]
[EventCountry "FIN"]
[SourceTitle "playchess.com"]
[Source "ChessBase"]
[SourceQuality "1"]
[TimeControl "40/5400+30:1800+30"]

1. e4 {[%emt 0:00:00]} c5 {[%emt 0:00:09]} 2. d3 {[%emt 0:00:16]} g6 {[%emt 0:00:23]} 3. Nf3 {[%emt 0:00:31]} Bg7 {[%emt 0:00:15]} 4. g3 {[%emt 0:00:53]} Nc6 {[%emt 0:00:52]} 5. c3 {[%emt 0:01:03]} e6 {[%emt 0:04:41]} 6. Bg2 {[%emt 0:00:23]} Nge7 {[%emt 0:00:26]} 7. O-O {[%emt 0:02:52]} O-O {[%emt 0:00:40]} 8. Bd2 {[%emt 0:01:16]} b5 {[%emt 0:05:56]} 9. Na3 {[%emt 0:01:30]} Rb8 {[%emt 0:00:41]} 10. Nc2 {[%emt 0:00:43]} a5 {[%emt 0:00:38]} 11. a3 {[%emt 0:00:38]} d5 {[%emt 0:03:52]} 12. Rb1 {[%emt 0:02:22]} Ba6 {[%emt 0:02:09]} 13. b4 {[%emt 0:02:28]} c4 {[%emt 0:04:31]} 14. exd5 {[%emt 0:06:03]} exd5 {[%emt 0:00:42]} 15. d4 {[%emt 0:00:29]} Bc8 {[%emt 0:00:42]} 16. Bf4 {[%emt 0:03:41]} Rb7 {[%emt 0:00:17]} 17. Re1 {[%emt 0:01:56]} Bf5 {[%emt 0:00:52]} 18. Rb2 {[%emt 0:02:37]} Qd7 {[%emt 0:00:34]} 19. Nh4 {[%emt 0:06:11]} Bh3 {[%emt 0:00:34]} 20. Bxh3 {[%emt 0:02:16]} Qxh3 {[%emt 0:00:05]} 21. Nf3 {[%emt 0:00:34]} f6 {[%emt 0:02:53]} 22. Rb1 {[%emt 0:02:11]} g5 {[%emt 0:00:34]} 23. Bd2 {[%emt 0:01:02]} a4 {[%emt 0:02:50]} 24. Ne3 {[%emt 0:06:43]} Nd8 {[%emt 0:03:59]} 25. Qc2 {[%emt 0:04:07]} Nf7 {[%emt 0:00:50]} 26. Re2 {[%emt 0:00:53]} Nd6 {[%emt 0:02:28]} 27. Rbe1 {[%emt 0:00:54]} Rf7 {[%emt 0:04:08]} 28. Kh1 {[%emt 0:00:50]} h5 {[%emt 0:03:28]} 29. Ng1 {[%emt 0:00:43]} Qc8 {[%emt 0:00:13]} 30. Ng2 {[%emt 0:01:55]} Ne4 {[%emt 0:06:43]} 31. Bc1 {[%emt 0:03:04]} Rd7 {[%emt 0:04:49]} 32. f4 {[%emt 0:02:48]} g4 {[%emt 0:00:51]} 33. Nh4 {[%emt 0:01:35]} Rd8 {[%emt 0:00:51]} 34. Rf1 {[%emt 0:01:03]} Nf5 {[%emt 0:00:48]} 35. Nxf5 {[%emt 0:01:33]} Qxf5 {[%emt 0:00:05]} 36. Be3 {[%emt 0:01:26]} Bf8 {[%emt 0:00:45]} 37. Bd2 {[%emt 0:03:22]} Nxg3+ {[%emt 0:00:36]} 38. Kg2 {[%emt 0:00:54]} Qxc2 {[%emt 0:00:09]} 39. Kxg3 {[%emt 0:00:18]} Qf5 {[%emt 0:00:20]} 40. Rfe1 {[%emt 0:00:00]} Rh7 {[%emt 0:00:18]} 41. h4 {[%emt 0:03:09]} gxh3 {[%emt 0:00:26]} 42. Nxh3 {[%emt 0:00:06]} h4+ {[%emt 0:01:48]} 43. Kh2 {[%emt 0:00:11]} Kh8 {[%emt 0:00:29]} 44. Rg2 {[%emt 0:02:48]} Bd6 {[%emt 0:01:18]} 45. Rf1 {[%emt 0:01:55]} Re8 {[%emt 0:00:27]} 46. Rfg1 {[%emt 0:01:00]} Rh6 {[%emt 0:02:24]} 47. Rg7 {[%emt 0:01:06]} Re2+ {[%emt 0:00:24]} 48. Kh1 {[%emt 0:01:07]} Qxh3# {[%emt 0:00:09]} 0-1

[Event "FIN-ch Women 2018"]
[Site "Helsinki"]
[Date "2018.06.14"]
[Round "4"]
[White "Norlamo, Sarabella"]
[Black "Turunen, Tiina"]
[Result "1/2-1/2"]
[ECO "B10"]
[WhiteElo "1847"]
[BlackElo "1665"]
[Annotator "NA"]
[PlyCount "93"]
[EventDate "2018.06.13"]
[EventType "tourn"]
[EventCountry "FIN"]
[SourceTitle "playchess.com"]
[Source "ChessBase"]
[SourceQuality "1"]
[TimeControl "40/5400+30:1800+30"]

1. e4 {[%emt 0:01:09]} c6 {[%emt 0:00:14]} 2. Nf3 {[%emt 0:00:37]} d5 {[%emt 0:00:14]} 3. exd5 {[%emt 0:00:05]} cxd5 {[%emt 0:00:16]} 4. Ne5 {[%emt 0:00:01]} Nc6 {[%emt 0:02:10]} 5. d4 {[%emt 0:01:03]} Nf6 {[%emt 0:02:18]} 6. Bb5 {[%emt 0:00:09]} Bd7 {[%emt 0:00:34]} 7. Nxd7 {[%emt 0:00:10]} Qxd7 {[%emt 0:00:23]} 8. c3 {[%emt 0:00:50]} a6 {[%emt 0:00:17]} 9. Bd3 {[%emt 0:00:10]} e5 {[%emt 0:00:47]} 10. dxe5 {[%emt 0:01:22]} Nxe5 {[%emt 0:01:24]} 11. Qe2 {[%emt 0:08:24]} O-O-O {[%emt 0:01:31]} 12. O-O {[%emt 0:05:11]} Nxd3 {[%emt 0:03:15]} 13. Qxd3 {[%emt 0:00:01]} Bc5 {[%emt 0:02:12]} 14. Nd2 {[%emt 0:02:52]} Rhe8 {[%emt 0:00:41]} 15. Nf3 {[%emt 0:02:23]} h6 {[%emt 0:03:21]} 16. b4 {[%emt 0:03:05]} Bb6 {[%emt 0:03:46]} 17. a4 {[%emt 0:10:36]} Re7 {[%emt 0:01:37]} 18. a5 {[%emt 0:08:28]} Ba7 {[%emt 0:04:59]} 19. Ba3 {[%emt 0:09:28]} Re6 {[%emt 0:02:10]} 20. Nd4 {[%emt 0:04:20]} Bxd4 {[%emt 0:03:11]} 21. cxd4 {[%emt 0:04:20]} Kb8 {[%emt 0:00:33]} 22. Rfb1 {[%emt 0:03:56]} Rc8 {[%emt 0:03:07]} 23. b5 {[%emt 0:01:07]} Ka8 {[%emt 0:02:59]} 24. bxa6 {[%emt 0:02:27]} bxa6 {[%emt 0:10:30]} 25. Bc5 {[%emt 0:05:58]} Rb8 {[%emt 0:02:03]} 26. Rxb8+ {[%emt 0:04:09]} Kxb8 {[%emt 0:00:19]} 27. Qg3+ {[%emt 0:00:16]} Ka8 {[%emt 0:03:09]} 28. Qxg7 {[%emt 0:02:01]} Qe8 {[%emt 0:00:24]} 29. Qf8 {[%emt 0:03:35]} Nd7 {[%emt 0:02:52]} 30. Qxe8+ {[%emt 0:00:23]} Rxe8 {[%emt 0:00:10]} 31. Bb4 {[%emt 0:07:53]} Rb8 {[%emt 0:01:50]} 32. Bd2 {[%emt 0:00:13]} h5 {[%emt 0:00:40]} 33. Kf1 {[%emt 0:00:18]} Rb2 {[%emt 0:00:36]} 34. Ke1 {[%emt 0:01:17]} Kb7 {[%emt 0:02:56]} 35. Ra3 {[%emt 0:02:11]} Nf6 {[%emt 0:06:51]} 36. f3 {[%emt 0:05:01]} Ne8 {[%emt 0:03:28]} 37. Re3 {[%emt 0:01:01]} Nd6 {[%emt 0:00:57]} 38. Re2 {[%emt 0:01:07]} Kc6 {[%emt 0:01:19]} 39. Kf2 {[%emt 0:00:58]} Nc4 {[%emt 0:01:05]} 40. Bc3 {[%emt 0:00:00]} Rb3 {[%emt 0:02:49]} 41. Be1 {[%emt 0:03:23]} Rd3 {[%emt 0:02:07]} 42. Re7 {[%emt 0:01:58]} Nd6 {[%emt 0:05:52]} 43. Ra7 {[%emt 0:13:03]} Kb5 {[%emt 0:03:35]} 44. Rd7 {[%emt 0:00:01]} Kc6 {[%emt 0:00:24]} 45. Ra7 {[%emt 0:03:52]} Kb5 {[%emt 0:00:14]} 46. Rd7 {[%emt 0:00:06]} Kc6 {[%emt 0:00:43]} 47. Ra7 {[%emt 0:07:32]} 1/2-1/2

[Event "FIN-ch Women 2018"]
[Site "Helsinki"]
[Date "2018.06.14"]
[Round "4"]
[White "Pelander, Pauliina"]
[Black "Nazarova, Anastasia"]
[Result "0-1"]
[ECO "A00"]
[WhiteElo "1610"]
[BlackElo "2137"]
[Annotator "NA"]
[PlyCount "62"]
[EventDate "2018.06.13"]
[EventType "tourn"]
[EventCountry "FIN"]
[SourceTitle "playchess.com"]
[Source "ChessBase"]
[SourceQuality "1"]
[TimeControl "40/5400+30:1800+30"]

1. b4 {[%emt 0:00:00]} d5 {[%emt 0:00:05]} 2. Bb2 {[%emt 0:00:00]} Bg4 {[%emt 0:00:17]} 3. h3 {[%emt 0:00:02]} Bf5 {[%emt 0:00:07]} 4. e3 {[%emt 0:02:45]} e6 {[%emt 0:00:15]} 5. h4 {[%emt 0:00:34]} h5 {[%emt 0:01:25]} 6. c4 {[%emt 0:01:03]} Nf6 {[%emt 0:01:48]} 7. b5 {[%emt 0:05:24]} Nbd7 {[%emt 0:02:36]} 8. Be2 {[%emt 0:05:56]} Nb6 {[%emt 0:03:36]} 9. Na3 {[%emt 0:03:21]} Bxa3 {[%emt 0:03:07]} 10. Bxa3 {[%emt 0:00:06]} dxc4 {[%emt 0:00:20]} 11. Bb2 {[%emt 0:04:11]} Qd5 {[%emt 0:00:46]} 12. a4 {[%emt 0:09:14]} Nbd7 {[%emt 0:00:12]} 13. Rc1 {[%emt 0:00:44]} Nc5 {[%emt 0:12:55]} 14. Bxc4 {[%emt 0:24:36]} Qxg2 {[%emt 0:01:08]} 15. Qf3 {[%emt 0:01:06]} Qg6 {[%emt 0:00:17]} 16. Ne2 {[%emt 0:08:31]} Be4 {[%emt 0:00:54]} 17. Qh3 {[%emt 0:01:03]} Bxh1 {[%emt 0:01:38]} 18. Qxh1 {[%emt 0:00:15]} Rd8 {[%emt 0:05:57]} 19. Nf4 {[%emt 0:02:46]} Qe4 {[%emt 0:02:48]} 20. Qg1 {[%emt 0:00:25]} Ng4 {[%emt 0:05:46]} 21. d4 {[%emt 0:03:57]} e5 {[%emt 0:05:14]} 22. Be2 {[%emt 0:08:51]} exf4 {[%emt 0:02:28]} 23. Rxc5 {[%emt 0:00:41]} fxe3 {[%emt 0:14:37]} 24. f3 {[%emt 0:02:12]} Qb1+ {[%emt 0:00:27]} 25. Bc1 {[%emt 0:00:05]} Qb4+ {[%emt 0:00:34]} 26. Kf1 {[%emt 0:00:27]} Qxd4 {[%emt 0:02:20]} 27. Rxc7 {[%emt 0:02:04]} O-O {[%emt 0:03:41]} 28. fxg4 {[%emt 0:00:30]} Qf4+ {[%emt 0:00:05]} 29. Kg2 {[%emt 0:01:51]} Qxc7 {[%emt 0:00:08]} 30. gxh5 {[%emt 0:01:10]} Rfe8 {[%emt 0:00:59]} 31. h6 {[%emt 0:01:06]} Rd6 {[%emt 0:00:52]} 0-1